Cogmind - Beta 15 @@@ ROGUE MODE // 2025.06.03 @ 20:52:41 Player: BlobtheGreat Result: Destroyed by Piercing Trap Performance ------------- Evolutions (0) 0 Regions Visited (2) 400 Robots Destroyed (21) 105 Value Destroyed (384) 384 Prototype IDs (2) 40 Alien Tech Used (0) 0 Bonus (0) 0 TOTAL SCORE: 929 Bonus ------- None Cogmind --------- Core Integrity 0/250 Matter 73/300 Energy 196/200 System Corruption 2% Temperature Cool (2) Movement Walking (190) Ox1 Location -10/Subcaves Parts ------- > --- POWER (1) -------- Subdweller Power Source > --- PROPULSION (2) --- Aluminum Leg Aluminum Leg > --- UTILITY (2) ------ Large Storage Unit Seismic Detector > --- WEAPON (2) ------- Improved Light Cannon Improved Light Cannon > --- INVENTORY (15) --- Ion Engine Light Treads Aluminum Leg Aluminum Leg Medium Storage Unit Structural Scanner Hardened Light Armor Plating Hardened Light Armor Plating Light Assault Rifle Mini Grenade Launcher Mining Laser Peak State ------------ > --- POWER ------------ Subdweller Power Source > --- PROPULSION ------- Aluminum Leg Aluminum Leg > --- UTILITY ---------- Large Storage Unit Seismic Detector > --- WEAPON ----------- Improved Light Cannon Improved Light Cannon > --- INVENTORY -------- Ion Engine Light Treads Aluminum Leg Aluminum Leg Medium Storage Unit Structural Scanner Hardened Light Armor Plating Hardened Light Armor Plating Light Assault Rifle Mini Grenade Launcher Mining Laser [Rating: 11] Favorites ----------- Power Ion Engine Engine Ion Engine Propulsion Aluminum Leg Treads Light Treads Leg Aluminum Leg Utility Seismic Detector Device Seismic Detector Storage Large Storage Unit Weapon Light Assault Rifle Ballistic Gun Light Assault Rifle Ballistic Cannon Improved Light Cannon Launcher Mini Grenade Launcher Special Weapon Mining Laser Build | -11 -10 -10 ------- Run | Yrd Mat Sub Slots Evolved . | . . . Power . | . . . Propulsion . | . . . Utility . | . . . Weapon . | . . . Parts Attached 21 | 8 6 7 Power 2 | 1 . 1 Engine 2 | 1 . 1 Core . | . . . Reactor . | . . . Propulsion 6 | 2 2 2 Treads 2 | . 2 . Leg 4 | 2 . 2 Wheel . | . . . Hover . | . . . Flight . | . . . Utility 6 | 2 4 . Device 3 | 1 2 . Storage 3 | 1 2 . Processor . | . . . Hackware . | . . . Protection . | . . . Artifact . | . . . Weapon 7 | 3 . 4 Energy Gun . | . . . Energy Cannon . | . . . Ballistic Gun 3 | 3 . . Ballistic Cannon 2 | . . 2 Launcher 1 | . . 1 Special Weapon 1 | . . 1 Impact Weapon . | . . . Slashing Weapon . | . . . Piercing Weapon . | . . . Special Melee Weapon . | . . . Unidentified Prototypes . | . . . Parts Lost 5 | . 3 2 Power 1 | . . 1 Propulsion 1 | . . 1 Utility 1 | . 1 . Weapon 2 | . 2 . Highest Loss Streak 2 | . 1 2 To Critical Strikes . | . . . Average Backups 9 | 4 9 12 Power 1 | . 1 1 Propulsion 3 | 2 3 3 Utility 2 | . 1 4 Weapon 2 | . 2 3 Tool/Special . | . . . Unused Backups 5 | . 2 3 Power 1 | . . 1 Propulsion 2 | . 2 . Utility 2 | . . 2 Weapon . | . . . Tool/Special . | . . . Average Slot Usage (%) 96 | . 95 97 Engine 13 | . 14 13 Treads 15 | . 11 20 Leg 12 | . 16 6 Device 12 | . 11 14 Storage 14 | . 14 14 Ballistic Gun 19 | . 26 10 Ballistic Cannon 6 | . . 13 Special Weapon 1 | . . 3 Peak Build Rating 11 | 7 8 11 Average Rating 7 | 5 7 9 On Entrance 4 | . 7 7 Naked Turns . | . . . Heaviest Build 34 | 14 29 34 Greatest Support 40 | 20 40 40 Greatest Overweight (x) 1 | . . 1 Average Overweight (x) . | . . . Largest Inventory Capacity 15 | 8 15 15 Average Capacity 12 | 7 11 15 Most Carried 13 | 8 13 13 Average Carried 9 | 4 9 12 Final Capacity 15 | 8 15 15 Final Carried 13 | 8 13 11 Class Distribution -------------------- 100% | Mutant Dominant Class ---------------- Mutant | -10/Materials Mutant | -10/Subcaves Resources | -11 -10 -10 ----------- Run | Yrd Mat Sub Matter Collected 634 | 304 273 57 Remotely . | . . . Salvage Created 416 | 100 274 42 Parts 29 | 8 13 8 Haulers Intercepted 1 | . 1 . Recyclers Shooed 1 | 1 . . Parts Field Recycled . | . . . Retrieved Matter . | . . . Parts Self-Destructed 7 | . . 7 Prevented . | . . . Kills | -11 -10 -10 ------- Run | Yrd Mat Sub Combat Hostiles Destroyed 15 | . 7 8 Guns 8 | . 7 1 Cannons 1 | . . 1 AOE 6 | . . 6 Classes Destroyed 7 | 2 3 2 Tunneler 2 | 2 . . Hauler 1 | . 1 . Recycler 1 | 1 . . Turret 2 | . . 2 Swarmer 10 | . 3 7 Grunt 4 | . 4 . Subdweller 1 | . . 1 Best Kill Streak 6 | 2 3 6 Combat Bots Only 4 | . 3 4 Max Kills in Single Turn 2 | 1 1 2 Gunslinging . | . . . Exploded 2 | . . 2 Melee . | . . . Uniques/NPCs Destroyed . | . . . Combat | -11 -10 -10 -------- Run | Yrd Mat Sub Hostile Shots Fired 167 | . 44 123 Missed 47 | . 6 41 Hits 120 | . 38 82 Projectile 120 | . 38 82 Critical Strikes 2 | . 2 . Damage Taken 1190 | . 457 733 Core 253 | . 52 201 Absorbed by Shields . | . . . Core Remaining (%) 100 | 100 . . Volleys Fired 76 | 13 37 26 Largest 2 | 2 2 2 Hottest 100 | 40 40 100 Shots Fired 138 | 26 68 44 Gun 106 | 26 68 12 Cannon 19 | . . 19 Launcher 7 | . . 7 Special 6 | . . 6 Kinetic 125 | 26 68 31 Thermal 6 | . . 6 Explosive 7 | . . 7 Electromagnetic . | . . . Robot Hit Streak 9 | 5 3 9 Robot Miss Streak 7 | 5 7 4 Penetration Max . | . . . Secondary Targets 1 | . 1 . Max Gunslinging Chain 1 | . 1 . Shots Hit Robots 66 | 12 32 22 Core Hits 35 | 5 16 14 Critical Kills . | . . . Critical Parts Destroyed . | . . . Critical Strikes . | . . . Melee Attacks . | . . . Impact . | . . . Slashing . | . . . Piercing . | . . . Sneak Attacks . | . . . Combat Hostiles . | . . . Follow-up Attacks . | . . . Damage Inflicted 1387 | 140 382 865 Guns 597 | 140 382 75 Cannons 231 | . . 231 Explosions 559 | . . 559 Melee . | . . . Ramming . | . . . Kinetic 828 | 140 382 306 Thermal . | . . . Explosive 559 | . . 559 Electromagnetic . | . . . Impact . | . . . Slashing . | . . . Piercing . | . . . Highest Corruption 2 | . 2 2 Average Corruption 2 | . 2 2 Corruption Purged . | . . . Corruption Blocked . | . . . Effects 6 | . 2 4 Message Errors 2 | . 2 . Matter Fused 1 | . . 1 Heat Flow Errors 1 | . . 1 Data Loss (minor) 1 | . . 1 Misfires 1 | . . 1 Overload Shots . | . . . Overflow Damage 44 | . . 44 Projectiles 31 | . . 31 Explosions 13 | . . 13 Melee . | . . . Knockbacks 4 | . . 4 Impact . | . . . Kinetic 4 | . . 4 Secondary . | . . . Self-Inflicted Damage 46 | . . 46 Shots 1 | . . 1 Rammed . | . . . Targets Rammed . | . . . Kicked . | . . . Crushed . | . . . Highest Temperature 95 | . 20 95 Average Temperature 13 | . 7 33 Received Heat Transfer 534 | . 252 282 Siege Activations . | . . . Martial Activations . | . . . Shielding Activations . | . . . Robots Disrupted . | . . . Combat Hostiles . | . . . Robots Corrupted . | . . . Combat Hostiles . | . . . Parts Fried . | . . . Impact Corruptions . | . . . Robots Melted . | . . . Combat Hostiles . | . . . Parts Melted . | . . . Heat Transferred . | . . . Parts Sabotaged . | . . . Parts Stolen . | . . . Parts Stripped . | . . . Power Chain Reactions . | . . . Alert | -11 -10 -10 ------- Run | Yrd Mat Sub Maximum Alert Level . | . . . Low Security (%) 100 | 100 100 . Level 1 . | . . . Level 2 . | . . . Level 3 . | . . . Level 4 . | . . . Level 5 . | . . . High Security . | . . . Max Security . | . . . Peak Influence 60 | 5 60 . Initial . | . . . Average 12 | 1 14 . Influence Increases 443 | 15 193 235 Destroy 0b10 Robot/C 320 | . 140 180 Destroy 0b10 Robot/NC 20 | 15 5 . Destroy Leader 42 | . 32 10 Successful Hack 15 | . 15 . Destroy Structure 1 | . 1 . Lose Combat Pursuer 45 | . . 45 Influence Decreases 376 | 15 157 204 Entered New Map 18 | . . 18 Time Decay 297 | 15 116 166 Lost Part 40 | . 20 20 Purge Threat 21 | . 21 . Squads Dispatched 1 | . 1 . Investigation . | . . . Extermination . | . . . Reinforcement 1 | . 1 . Assault . | . . . Garrison . | . . . Intercept . | . . . Searches Triggered . | . . . Construction Impeded . | . . . Haulers Reinforced . | . . . Active Scanning Responses . | . . . Cargo Convoy Interrupts . | . . . Stealth | -11 -10 -10 --------- Run | Yrd Mat Sub Distress Signals . | . . . Communications Jammed . | . . . Distress Signals . | . . . Times Spotted 24 | . 13 11 Peak Tracking Total 6 | . 5 6 Tactical Retreats 1 | . . 1 Traps | -11 -10 -10 ------- Run | Yrd Mat Sub Traps Triggered 2 | . 1 1 Indirectly . | . . . Trap Hack Attempts . | . . . Triggered . | . . . Disarmed . | . . . Reprogrammed . | . . . Reused . | . . . Traps Extracted . | . . . Installed . | . . . Triggered . | . . . Machines | -11 -10 -10 ---------- Run | Yrd Mat Sub Machines Disabled 3 | . . 3 Max in Single Turn 3 | . . 3 Machines Repaired . | . . . Machines Dismantled . | . . . Machines Sabotaged . | . . . Overloaded Fab Kills . | . . . Hacking | -11 -10 -10 --------- Run | Yrd Mat Sub Machines Accessed 5 | . 5 . Terminals 5 | . 5 . Fabricators . | . . . Repair Stations . | . . . Recycling Units . | . . . Scanalyzers . | . . . Garrison Access . | . . . Total Hacks 20 | . 20 . Successful 10 | . 10 . Failed 10 | . 10 . Catastrophic 2 | . 2 . Database Lockouts . | . . . Manual . | . . . Terminals 20 | . 20 . Fabricators . | . . . Repair Stations . | . . . Recycling Units . | . . . Scanalyzers . | . . . Garrison Access . | . . . Terminal Hacks 10 | . 10 . Record 1 | . 1 . Prototype ID Bank 1 | . 1 . Terminal Index 1 | . 1 . Unreport Threat 1 | . 1 . Locate Traps 1 | . 1 . Maintenance Status 1 | . 1 . Recall Investigation 1 | . 1 . Hauler Manifests 2 | . 2 . Zone Layout 1 | . 1 . Fabricator Hacks . | . . . Repair Station Hacks . | . . . Recycling Unit Hacks . | . . . Scanalyzer . | . . . Garrison Access Hacks . | . . . Unauthorized Hacks . | . . . Terminals . | . . . Fabricators . | . . . Repair Stations . | . . . Recycling Units . | . . . Scanalyzers . | . . . Garrison Access . | . . . Data Cores Recovered . | . . . Used . | . . . Hacking Detections 4 | . 4 . Full Trace Events . | . . . Feedback Events . | . . . Feedback Blocked . | . . . Robot Schematics Acquired . | . . . Robots Built . | . . . Authchips . | . . . Time . | . . . Total Robot Build Rating . | . . . Part Schematics Acquired . | . . . Parts Built . | . . . Authchips . | . . . Time . | . . . Total Part Build Rating . | . . . Parts Repaired . | . . . Time . | . . . Parts Recycled . | . . . Recycled Matter . | . . . Retrieved Matter . | . . . Retrieved Components . | . . . Parts Scanalyzed . | . . . Part Schematics Acquired . | . . . Parts Damaged . | . . . Bothacking | -11 -10 -10 ------------ Run | Yrd Mat Sub Used RIF Installer . | . . . Robots Hacked . | . . . Non-combat . | . . . Combat . | . . . Robot Hacks Applied . | . . . Relay Couplers Released . | . . . Fabnet Peak Effective % . | . . . Robots Rewired . | . . . Allies Hacked . | . . . Hacks Repelled . | . . . Allies | -11 -10 -10 -------- Run | Yrd Mat Sub Total Allies . | . . . Largest Group . | . . . Highest-Rated Group . | . . . Highest-Rated Ally . | . . . Total Orders . | . . . Ally Attacks . | . . . Total Damage . | . . . Kills . | . . . Allies Corrupted . | . . . Allies Melted . | . . . Intel | -11 -10 -10 ------- Run | Yrd Mat Sub Active Infowar (turns) 863 | 29 431 403 Seismic 863 | 29 431 403 Robot Analysis Total . | . . . Derelict Logs Recovered . | . . . Drone Launches . | . . . Drone Recoveries . | . . . Exploration | -11 -10 -10 ------------- Run | Yrd Mat Sub Turns Passed 1070 | 143 524 403 Spaces Moved 537 | 76 279 182 Core 6 | 6 . . Treads 247 | . 115 132 Legs 284 | 70 164 50 Wheels . | . . . Hover . | . . . Flight . | . . . Fastest Speed 50 | 50 120 160 Average Speed 144 | 114 136 168 Slowest Speed 240 | 120 160 240 Overloaded Moves . | . . . Propulsion Burnouts . | . . . Robots Hopped . | . . . Potential Cave-ins . | . . . Cave-ins Triggered . | . . . Exploration Rate (%) 24 | 5 55 13 Regions Visited 2 Branch Regions 1 Pre-discovered Areas . | . . . Known Exits Taken . | . . . Unknown Exits Taken 2 | 1 1 . Scrap Searched . | . . . Spaces Dug 11 | . . 11 Terrain Destroyed 42 | . . 42 Melee . | . . . Projectile 1 | . . 1 AOE 41 | . . 41 Terrain Rammed . | . . . Walls Destroyed . | . . . Machines Disabled . | . . . Actions | -11 -10 -10 --------- Run | Yrd Mat Sub Total 682 | 104 356 222 Wait 18 | . 18 . Move 535 | 75 278 182 Hop . | . . . Pick Up 20 | 8 11 1 Fast Attach 7 | 7 . . Attach 5 | . 2 3 Detach . | . . . Swap 17 | 1 6 10 Drop 4 | . 4 . Fire 76 | 13 37 26 Melee . | . . . Ram . | . . . Kick . | . . . Crush . | . . . Escape Stasis . | . . . Rewire . | . . . Trap . | . . . Miscellaneous . | . . . Route ------- -11/Scrapyard -10/Materials (discovered 2 exits: [*Mat] / [*Sub]) -10/Subcaves (discovered 1 exit: [*Rec]) History --------- Turn | Location | Event 3 | -11/Scrapyard | Discovered new exit (range 15) 144 | -11/Scrapyard | Entered Materials 306 | -10/Materials | Build established: Mutant 516 | -10/Materials | Discovered new exit (range 8) 662 | -10/Materials | Discovered new exit (range 5) 668 | -10/Materials | Entered Subcaves 669 | -10/Subcaves | Approached by a straggling Scientist 687 | -10/Subcaves | Ambushed by Subdweller buried in earth 940 | -10/Subcaves | Discovered new exit (range 9) 941 | -10/Subcaves | Core integrity fell below 50% 953 | -10/Subcaves | Core integrity fell below 20% 1071 | -10/Subcaves | Destroyed by Piercing Trap Last Messages --------------- 00960_ Autobeam Turret knocked back. 00961_ Flight Unit fries itself beyond repair. 00963_ Lgt. Ion Engine fries itself beyond repair. 00963_ Autobeam Turret destroyed. 00969_ Destroyed Autobeam. 00969_ Autobeam Turret destroyed. 93-X2M(c): "We're getting close, I can feel it." 00978_ Acquired 5 matter. 00993_ Acquired 2 matter. 00995_ Acquired 4 matter. 01001_ Acquired 1 matter. 01005_ Acquired 5 matter. 01007_ Acquired 8 matter. 01011_ Acquired 1 matter. 01024_ The unstable cave ceiling collapses. 93-X2M(c): "We're getting close, I can feel it." 01071_ Triggered Piercing Trap. 01071_ Spikes shoot up from the floor. 01071_ Critical hit (Impale). Map ----- +----------------------------------------------------+ | ????????????????????####?## ### ###??????### | | ????????????????????# ## ## #??????????## | | ?????????????????????? # ###" """#???????????? | | ???????????????????????# # #########???????????? | | ??????????????????????## ##???????????????????? | | ??????????????????????# # #???????????????????? | | ??????????????????????# # ##???????????????????? | | ??????????????????????## ##???????????????????? | | ???????????????????????## #???????????????????? | | ?????????????? ????????## #???????????????????? | | ?????????????? ##????#### #???????????????????? | | ?????????????? ???# ## #???????????????????? | | ??????????????? #?## #???????????????????? | | ?????????????????# ## #???????????????????? | | ??????????????????# #???????????????????? | | ??????????????????# # ##???????????????????? | | ??????????????????##?# #????????????????????? | | ?????????????????????## ##???????????????????? | | ??????????????????????### #???????????????????? | | ???????????????????????#c ###???????????????????? | | ??????????????????#????# ##?????????????????????? | | ??????????????????# ??# #??????????????????????? | | ??????????????????## ?## ##?????????????????????? | | ?????????????# ### # #?????????????????????? | | ??????????????# ## #??????????????? | | ???????????????# @ #???????????????? | | ??????????????#$# ### #???????????????? | | ????????????????#????# #### #?????????????? | | ?????????????????????# ???? ##?????????????? | | ?????????????????????# ???? #??????????????? | | ????????????????????? ????? #??????????????? | | ???????????????????? ????? #??????????????? | | ??????????????????? ??????? #??????????????? | | ?????????????????? # ??????? ??????????????? | | ?????????????????######???????? ?????????????? | | ????????????????????????????????# ????????????? | | ?????????????????????????????????????????????????? | | ?????????????????????????????????????????????????? | | ?????????????????????????????????????????????????? | | ?????????????????????????????????????????????????? | | ?????????????????????????????????????????????????? | | ?????????????????????????????????????????????????? | | ?????????????????????????????????????????????????? | | ?????????????????????????????????????????????????? | | ?????????????????????????????????????????????????? | | ?????????????????????????????????????????????????? | | ?????????????????????????????????????????????????? | | ?????????????????????????????????????????????????? | | ?????????????????????????????????????????????????? | | ?????????????????????????????????????????????????? | +----------------------------------------------------+ Best States ------------- Heat Dissipation 25 Energy Generation 15 Energy Capacity 250 Matter Stores 300 Matter Capacity 300 Sight Range 16 Terrain Scan Density 10 Evasion (%) 55 Recoil Reduction 2 Item Schematics ----------------- None Robot Schematics ------------------ None Fabricated ------------ Nothing Repaired ---------- Nothing Alien Tech Used ----------------- None Achievements -------------- None Challenges ------------ None Game ------ Seed CobblerGuidedKatana Manual? 0 Play Time 00:15:37 Cumulative 7.7 hours Start 2025.06.03 @ 20:38:31 End 2025.06.03 @ 20:52:41 Sessions 1 Manual Loads 0 Difficulty Rogue Special Mode None Game No. 9 Rogue 9 Adventurer 0 Explorer 0 Win Type - Total 0 Types 0/0/0/0/0/0/0/0/0/0 Lore% 9 Gallery% 13 Achievement% 14 Wizard Run 0 Options --------- Layout 1 ASCII 0 Keyboard 0 Movement Mouse Keybinds 0 Fullscreen 1 Font 24/Smallcaps Map View 50x40 Zoom Use 0% Tactical HUD 1 Map Filters NONE Filters NONE Steam 1 RUN: dc03a2da-35e5-42cb-bbb8-c55d0857beff